bitfinex-derivatives/quotes_BTCF0:USTF0_20230901
["timestamp","ask_amount","ask_price","bid_price","bid_amount"]
[1693588664838,0.03191209,25665.0,25663.0,1.0292]
[1693588665136,0.3,25666.0,25664.0,1.27296179]
[1693588665435,0.3,25669.0,25665.0,0.32940229]
[1693588665732,0.3,25669.0,25660.0,0.5442]
[1693588665733,0.0039,25667.0,25666.0,1.0292]
[1693588665934,0.0039,25667.0,25666.0,1.03309]
[1693588666131,0.11699677,25667.0,25666.0,1.0292]
[1693588666329,0.0039,25664.0,25663.0,1.0352]
[1693588666532,0.0039,25664.0,25663.0,0.003]
[1693588666533,0.0239,25664.0,25663.0,0.003]
[1693588666741,0.24637491,25664.0,25663.0,0.003]
[1693588667046,0.0039,25661.0,25660.0,0.1549]
[1693588667232,0.3039,25659.0,25656.0,1.0292]
[1693588667434,0.3039,25659.0,25657.0,0.2437821]
[1693588667631,0.3239,25659.0,25657.0,0.2437821]
[1693588667830,0.3239,25659.0,25657.0,0.3294226]
[1693588668130,0.3239,25659.0,25658.0,0.2437821]
[1693588668337,0.0039,25658.0,25656.0,1.0292]
[1693588668630,0.0039,25658.0,25657.0,0.24378373]
[1693588668835,0.0039,25658.0,25657.0,1.27298373]
[1693588669631,0.0039,25658.0,25657.0,1.35862423]
[1693588669833,0.0039,25658.0,25657.0,1.35962423]
[1693588670328,0.0219,25658.0,25657.0,1.36062423]
[1693588670529,0.018,25658.0,25657.0,1.36062423]
[1693588670730,0.018,25658.0,25657.0,1.38062423]
[1693588671144,0.0219,25658.0,25657.0,1.38062423]
[1693588671734,0.0219,25658.0,25657.0,1.27498373]
[1693588671940,0.0419,25658.0,25657.0,0.24578373]
[1693588672141,0.0419,25658.0,25657.0,0.24478373]
[1693588672447,0.25137491,25658.0,25657.0,0.24378373]
[1693588672631,0.0039,25656.0,25653.0,1.0292]
[1693588672939,0.3,25655.0,25654.0,0.32944441]
[1693588673141,0.3,25655.0,25654.0,0.24380391]
[1693588673442,0.3,25655.0,25654.0,0.32944441]
[1693588673935,0.3,25655.0,25654.0,0.33144441]
[1693588674134,0.323,25655.0,25654.0,0.24580391]
[1693588674342,0.3469,25655.0,25654.0,0.24580391]
[1693588674526,0.45609677,25655.0,25654.0,0.24580391]
[1693588674828,0.56547491,25655.0,25654.0,0.24580391]
[1693588675029,0.54547491,25655.0,25654.0,0.24580391]
[1693588675232,0.56547491,25655.0,25654.0,0.24580391]
[1693588675634,0.43809677,25655.0,25654.0,0.24380391]
[1693588676041,0.54747491,25655.0,25654.0,0.24380391]
[1693588676232,1.58057491,25655.0,25654.0,0.24380391]
[1693588676433,1.59857491,25655.0,25654.0,0.24680391]
[1693588676634,0.343,25655.0,25654.0,0.33244441]
[1693588676835,0.343,25655.0,25654.0,0.33444441]
[1693588677141,0.323,25655.0,25654.0,1.38364441]
[1693588677437,0.322,25655.0,25654.0,1.38464441]
[1693588678731,0.3,25655.0,25654.0,1.38164441]
[1693588678929,0.323,25655.0,25654.0,1.38264441]
[1693588679239,0.323,25655.0,25654.0,1.36264441]
[1693588679433,0.323,25655.0,25654.0,1.38264441]
[1693588679637,0.301,25655.0,25654.0,1.41564441]
[1693588679936,0.001,25655.0,25654.0,1.41564441]
[1693588680135,0.3,25662.0,25656.0,1.0292]
[1693588680342,0.3,25662.0,25661.0,1.0292]
[1693588680531,0.3,25662.0,25661.0,1.29300391]
[1693588680728,0.3,25662.0,25661.0,1.37864441]
[1693588681334,0.3,25665.0,25661.0,1.37864441]
[1693588681539,0.3,25668.0,25664.0,1.0292]
[1693588681744,0.3,25668.0,25665.0,0.24380391]
[1693588681937,0.3,25668.0,25666.0,0.0856405]
[1693588682140,0.3039,25668.0,25667.0,0.24380391]
[1693588682341,0.0039,25667.0,25662.0,1.0292]
[1693588682640,0.0039,25667.0,25664.0,0.003]
[1693588682641,0.3,25666.0,25664.0,0.003]
[1693588682845,0.3,25666.0,25665.0,0.32938001]
[1693588683043,0.3,25668.0,25665.0,0.32938001]
[1693588683235,0.3,25668.0,25664.0,1.0322]
[1693588683236,0.3335949,25668.0,25667.0,0.00489]
[1693588683543,0.3374949,25668.0,25667.0,0.24862951]
[1693588683841,0.3344949,25668.0,25667.0,0.24862951]
[1693588684038,0.3344949,25668.0,25667.0,0.26862951]
[1693588684039,0.3,25668.0,25667.0,0.26862951]
[1693588684433,0.3,25668.0,25667.0,1.38347001]
[1693588684637,0.3,25668.0,25667.0,0.33038001]
[1693588684947,1.44619677,25668.0,25667.0,0.24373951]
[1693588685142,0.0039,25664.0,25660.0,0.1593]
[1693588685330,0.0039,25664.0,25659.0,1.30158193]
[1693588685331,0.0039,25662.0,25661.0,0.24763831]
[1693588685540,0.0039,25662.0,25661.0,0.24374831]
[1693588685834,0.0039,25659.0,25658.0,0.1593]
[1693588686247,0.0039,25659.0,25658.0,0.40307754]
[1693588686538,0.0039,25659.0,25658.0,0.48871804]
[1693588687145,0.0069,25659.0,25658.0,0.48971804]
[1693588687445,0.0069,25659.0,25658.0,0.60616056]
[1693588687748,0.003,25659.0,25658.0,0.60616056]
[1693588688541,0.003,25659.0,25658.0,0.60516056]
[1693588688833,0.008,25659.0,25658.0,1.65536056]
[1693588689037,0.008,25659.0,25658.0,1.53891804]
[1693588689236,0.003,25659.0,25658.0,1.68547324]
[1693588689445,0.3039,25661.0,25658.0,1.71347324]
[1693588689753,0.3039,25661.0,25659.0,0.0856405]
[1693588689933,0.41699677,25661.0,25659.0,0.2437685]
[1693588690136,0.3039,25661.0,25660.0,0.0856405]
[1693588690439,1.46619677,25661.0,25660.0,0.2437685]
[1693588690733,1.46619677,25661.0,25658.0,0.2383]
[1693588690734,0.0039,25659.0,25658.0,0.2383]
[1693588690945,1.27557491,25659.0,25658.0,0.079]
[1693588691134,1.27557491,25659.0,25658.0,0.32280088]
[1693588691334,1.27557491,25659.0,25658.0,0.29180088]
[1693588691935,1.27557491,25659.0,25658.0,0.29480088]
[1693588692146,1.27557491,25659.0,25658.0,0.29780088]
[1693588692446,1.27957491,25659.0,25658.0,0.26980088]
[1693588692749,1.30357491,25659.0,25658.0,0.26980088]
[1693588694335,0.0319,25659.0,25658.0,0.35544138]
[1693588694745,0.0319,25659.0,25658.0,0.26980088]
[1693588694949,0.0519,25659.0,25658.0,0.26980088]
[1693588695139,1.0811,25659.0,25658.0,0.26980088]
[1693588695338,1.30357491,25659.0,25658.0,0.26980088]
[1693588695747,1.29957491,25659.0,25658.0,0.26680088]
[1693588696041,1.30357491,25659.0,25658.0,0.26680088]
[1693588696237,1.30457491,25659.0,25658.0,0.26538152]
[1693588696438,1.30899427,25659.0,25658.0,0.24196679]
[1693588696844,1.30899427,25659.0,25658.0,0.23063619]
[1693588697747,1.30457491,25659.0,25658.0,0.12429656]
[1693588698350,0.27537491,25659.0,25658.0,0.12429656]
[1693588698649,1.30457491,25659.0,25658.0,0.12429656]
[1693588699041,1.30457491,25659.0,25658.0,0.006]
[1693588699244,1.30457491,25659.0,25658.0,0.2498307]
[1693588699446,1.30457491,25659.0,25658.0,0.006]
[1693588699447,1.45676277,25659.0,25658.0,0.006]
[1693588699941,1.45676277,25659.0,25647.0,1.2970552]
[1693588699942,0.3039,25648.0,25647.0,0.1165552]
[1693588700145,0.0039,25647.0,25645.0,0.24386179]
[1693588700348,1.0292,25646.0,25645.0,0.24386179]
[1693588700544,0.3,25645.0,25642.0,0.2812552]
[1693588700744,0.3,25645.0,25643.0,0.24389601]
[1693588701555,0.3,25645.0,25643.0,0.26389601]
[1693588701749,0.11309677,25644.0,25643.0,0.02]
[1693588701947,0.303,25645.0,25643.0,0.037]
[1693588702149,0.41609677,25645.0,25644.0,0.24389704]
[1693588702846,0.303,25645.0,25644.0,0.26389704]
[1693588703051,0.303,25645.0,25644.0,0.34953754]
[1693588703456,0.306,25645.0,25644.0,0.38653754]
[1693588704256,0.006,25645.0,25644.0,1.45273754]
[1693588705255,0.006,25645.0,25644.0,0.42353754]
[1693588705456,0.006,25645.0,25644.0,0.31789704]
[1693588706157,0.3099,25645.0,25644.0,0.31789704]
[1693588706356,1.3552,25645.0,25644.0,0.31789704]
[1693588706553,1.3552,25645.0,25644.0,0.28731512]
[1693588706756,1.57767491,25645.0,25644.0,0.28731512]
[1693588707263,0.306,25645.0,25644.0,0.28731512]
[1693588707464,0.306,25645.0,25644.0,0.2814926]
[1693588707765,1.61167491,25645.0,25644.0,0.25307818]
[1693588708260,2.81167491,25645.0,25644.0,0.22184221]
[1693588708465,2.81167491,25645.0,25637.0,0.1165552]
[1693588708466,0.3,25638.0,25637.0,0.1165552]
[1693588708664,0.3,25638.0,25630.0,0.161]
[1693588708665,1.57167491,25638.0,25635.0,0.11634162]
[1693588708852,1.57167491,25638.0,25634.0,0.11634162]
[1693588708853,1.0292,25636.0,25634.0,0.11634162]
[1693588709164,0.3,25632.0,25631.0,0.11634162]
[1693588709463,0.3,25632.0,25626.0,0.11634162]
[1693588709464,0.3,25629.0,25626.0,0.11634162]
[1693588709650,0.3,25629.0,25627.0,0.00389]
[1693588709855,0.41309677,25629.0,25627.0,0.02389]
[1693588710050,0.40937814,25629.0,25627.0,0.02389]
[1693588710250,0.3,25629.0,25626.0,0.11634162]
[1693588710555,0.3,25629.0,25627.0,0.00389]
[1693588710752,0.3,25629.0,25627.0,0.14023162]
[1693588710954,0.3,25629.0,25627.0,0.13634162]
[1693588711162,0.41609677,25629.0,25627.0,0.05289]
[1693588711363,0.303,25629.0,25627.0,0.03289]
[1693588711549,0.303,25629.0,25627.0,0.029]
[1693588712154,0.307,25629.0,25627.0,0.029]
[1693588712858,0.42009677,25629.0,25627.0,0.1146405]
[1693588713258,0.307,25629.0,25628.0,0.0895305]
[1693588713561,0.307,25629.0,25628.0,0.00389]
[1693588714259,0.42009677,25629.0,25628.0,0.00389]
[1693588714764,0.52947491,25629.0,25628.0,0.03289]
[1693588715565,0.52947491,25629.0,25628.0,0.029]
[1693588716063,0.307,25629.0,25628.0,0.05289]
[1693588716464,0.3,25632.0,25631.0,0.00389]
[1693588716654,0.3,25632.0,25631.0,1.05309]
[1693588716857,0.3,25632.0,25631.0,1.0492]
[1693588717057,0.40937814,25632.0,25629.0,0.07496867]
[1693588717267,0.32,25632.0,25629.0,0.07496867]
[1693588717464,1.3492,25632.0,25629.0,0.07496867]
[1693588717669,1.3572,25632.0,25631.0,0.035]
[1693588717963,0.308,25632.0,25631.0,0.1245305]
[1693588718164,0.308,25632.0,25631.0,0.1445305]
[1693588718367,0.308,25632.0,25631.0,0.05589]
[1693588718668,1.45029677,25632.0,25631.0,0.032]
[1693588718872,0.53047491,25632.0,25631.0,0.03589]
[1693588719161,0.308,25632.0,25631.0,1.0842]
[1693588719357,0.308,25632.0,25631.0,1.08809]
[1693588719557,0.308,25632.0,25631.0,1.1537305]
[1693588719767,0.307,25632.0,25631.0,1.1217305]
[1693588719971,0.307,25632.0,25631.0,1.1178405]
[1693588720469,0.308,25632.0,25631.0,1.1498405]
[1693588721363,0.42109677,25632.0,25631.0,0.035]
[1693588721956,0.308,25632.0,25631.0,0.0389]
[1693588722163,0.308,25632.0,25631.0,1.0881]
[1693588722565,0.308,25632.0,25631.0,1.1737405]
[1693588722862,0.308,25632.0,25631.0,1.1537405]
[1693588723065,0.308,25632.0,25631.0,1.1737405]
[1693588723266,0.008,25632.0,25631.0,1.1737405]
[1693588723473,0.3,25637.0,25633.0,0.0039]
[1693588723767,0.3,25637.0,25636.0,1.0331]
[1693588723967,0.3,25637.0,25636.0,1.0492]
[1693588724269,0.41309677,25637.0,25635.0,0.0039]
[1693588724470,0.3,25637.0,25636.0,0.0039]
[1693588724683,0.0039,25636.0,25635.0,0.0039]
[1693588725568,0.0039,25636.0,25635.0,0.0895405]
[1693588725760,0.0039,25636.0,25634.0,1.0331]
[1693588725966,0.0039,25636.0,25633.0,0.003]
[1693588725967,0.3039,25634.0,25633.0,0.003]
[1693588726260,0.3239,25634.0,25633.0,0.003]
[1693588726461,0.0039,25633.0,25630.0,0.0039]
[1693588726669,0.0039,25633.0,25631.0,0.0039]
[1693588726863,0.22247491,25632.0,25630.0,0.0039]
[1693588727064,0.0039,25633.0,25631.0,0.0039]
[1693588727263,0.3,25630.0,25629.0,0.1572]
[1693588727577,0.52247491,25630.0,25629.0,0.1572]
[1693588728069,0.41309677,25630.0,25629.0,0.1572]
[1693588728677,0.52547491,25630.0,25629.0,0.1942]
[1693588729170,0.303,25630.0,25629.0,0.1981]
[1693588729375,0.303,25630.0,25629.0,0.2181]
[1693588729566,0.03501969,25633.0,25632.0,0.0039]
[1693588729874,0.004,25633.0,25632.0,1.0531]
[1693588730169,0.004,25633.0,25632.0,1.1387405]
[1693588730373,0.3,25637.0,25633.0,0.0039]
[1693588730576,0.3,25637.0,25636.0,0.0039]
[1693588730764,0.3,25637.0,25636.0,0.0856405]
[1693588731584,0.3,25637.0,25636.0,0.0039]
[1693588731760,0.324,25637.0,25636.0,0.0059]
[1693588731967,0.57037491,25637.0,25636.0,0.002]
[1693588732275,3.09957491,25637.0,25636.0,0.002]
[1693588732470,0.3,25633.0,25632.0,0.022]
[1693588732769,1.57167491,25633.0,25630.0,0.09459183]
[1693588732977,1.3531,25633.0,25630.0,0.09459183]
[1693588733176,0.22247491,25632.0,25630.0,0.09459183]
[1693588733366,1.3531,25633.0,25630.0,0.09459183]
[1693588733567,0.24247491,25632.0,25630.0,0.09459183]
[1693588733875,0.302,25633.0,25632.0,0.0039]
[1693588734076,0.302,25633.0,25632.0,0.0239]
[1693588734373,0.302,25633.0,25630.0,0.13159183]
[1693588734374,0.3,25631.0,25630.0,0.13159183]
[1693588734682,0.32,25631.0,25630.0,0.036]
[1693588734972,0.3,25623.0,25621.0,0.07717188]
[1693588735461,0.40937814,25623.0,25621.0,0.07717188]
[1693588735666,0.3,25623.0,25621.0,0.09717188]
[1693588736073,0.3,25623.0,25622.0,0.07717188]
[1693588736281,0.3,25626.0,25622.0,0.09717188]
[1693588736473,0.3,25626.0,25623.0,0.07717188]
[1693588736671,0.3,25626.0,25624.0,0.0856405]
[1693588736867,0.03841197,25633.0,25624.0,0.0856405]
[1693588736868,0.3,25630.0,25625.0,1.0292]
[1693588737174,0.0079,25633.0,25627.0,1.10653214]
[1693588737175,0.3039,25633.0,25627.0,1.10653214]
[1693588737376,0.028,25631.0,25627.0,1.0492]
[1693588737572,0.22247491,25630.0,25627.0,0.02]
[1693588737772,1.0292,25631.0,25627.0,0.02]
[1693588737978,1.0292,25631.0,25628.0,0.0856405]
[1693588738275,1.0292,25631.0,25628.0,0.02]
[1693588738477,1.0642,25631.0,25627.0,0.07733214]
[1693588738781,1.0442,25631.0,25627.0,0.09733214]
[1693588739074,0.10937814,25630.0,25627.0,0.09733214]
[1693588739276,1.0442,25631.0,25627.0,0.09733214]
[1693588739475,1.0442,25631.0,25628.0,0.0856405]
[1693588739681,1.0442,25631.0,25627.0,0.07733214]
[1693588739868,1.0442,25631.0,25628.0,0.07733214]
[1693588740076,0.015,25631.0,25629.0,0.0856405]
[1693588740376,0.055,25631.0,25628.0,0.09733214]
[1693588740574,0.055,25631.0,25629.0,0.0856405]
[1693588740774,0.055,25631.0,25629.0,0.02]
[1693588740974,0.029,25631.0,25629.0,0.09733214]
[1693588741173,0.015,25631.0,25630.0,0.0856405]
[1693588741370,0.015,25631.0,25630.0,0.1056405]
[1693588741880,0.015,25631.0,25629.0,0.07833214]
[1693588742385,0.015,25631.0,25630.0,0.07733214]
[1693588742681,0.029,25631.0,25630.0,1.74883152]
[1693588742866,0.029,25631.0,25630.0,1.71847381]
[1693588743065,0.029,25631.0,25630.0,1.87313809]
[1693588743272,0.3,25636.0,25630.0,2.13136635]
[1693588743470,0.3,25636.0,25634.0,0.07754308]
[1693588743771,0.3,25636.0,25635.0,0.0856405]
[1693588744275,0.3,25636.0,25635.0,0.16318358]
[1693588744276,0.304,25636.0,25635.0,0.16318358]
[1693588744782,0.3,25636.0,25635.0,0.0856405]
[1693588744981,0.327,25636.0,25635.0,0.0856405]
[1693588745172,0.327,25636.0,25635.0,0.20195512]
[1693588745366,0.3,25636.0,25635.0,0.22195512]
[1693588745674,0.014,25636.0,25635.0,0.1056405]
[1693588745878,0.05,25636.0,25635.0,1.1388405]
[1693588746181,0.05,25636.0,25635.0,1.25528226]
[1693588746575,0.024,25636.0,25635.0,1.25228226]
[1693588746781,0.024,25636.0,25635.0,1.1358405]
[1693588747081,0.011,25636.0,25635.0,0.1076405]
[1693588747579,0.012,25636.0,25635.0,0.1106405]
[1693588748171,0.013,25636.0,25635.0,0.1106405]
[1693588748368,0.013,25636.0,25635.0,0.0906405]
[1693588748578,0.004,25636.0,25635.0,0.52650867]
[1693588749078,0.004,25636.0,25635.0,0.5272696]
[1693588749281,0.005,25636.0,25635.0,0.43464217]
[1693588749675,0.005,25636.0,25635.0,0.52028267]
[1693588750078,0.3,25640.0,25635.0,0.52028267]
[1693588750079,0.3,25640.0,25635.0,1.99888764]
[1693588750273,0.0591,25641.0,25639.0,0.11656125]
[1693588750580,0.0791,25641.0,25640.0,0.20220175]
[1693588750782,1.08852679,25649.0,25641.0,1.34994057]
[1693588750783,0.0039,25649.0,25641.0,1.34994057]
[1693588750971,0.45086907,25655.0,25648.0,2.1750294]
[1693588750972,0.3039,25655.0,25648.0,2.1750294]
[1693588751171,0.0039,25655.0,25652.0,1.10694415]
[1693588751375,0.0039,25655.0,25651.0,0.1166294]
[1693588751376,0.0039,25655.0,25653.0,0.0856405]
[1693588751584,0.0039,25655.0,25652.0,0.07774512]
[1693588751774,0.0039,25655.0,25652.0,0.09774512]
[1693588751976,0.0039,25657.0,25653.0,2.31615093]
[1693588752175,0.0039,25658.0,25656.0,1.0292]
[1693588752378,0.3,25661.0,25656.0,1.0292]
[1693588752379,0.0039,25659.0,25657.0,1.20920581]
[1693588752584,0.0039,25659.0,25658.0,1.12356531]
[1693588752786,0.0039,25659.0,25658.0,1.14356531]
[1693588752973,0.11699677,25659.0,25658.0,1.12356531]
[1693588753179,0.0039,25657.0,25653.0,1.27254512]
[1693588753376,0.0039,25657.0,25654.0,1.12351896]
[1693588753673,0.0039,25657.0,25656.0,0.002]
[1693588753876,0.026,25658.0,25656.0,0.022]
[1693588754082,0.026,25658.0,25657.0,0.0856405]
[1693588754274,0.026,25658.0,25657.0,1.20915946]
[1693588754275,0.0299,25658.0,25657.0,1.20915946]
[1693588754481,0.0299,25658.0,25657.0,1.12351896]
[1693588754682,0.0299,25658.0,25657.0,1.20915946]
[1693588754880,0.0039,25658.0,25657.0,1.12351896]
[1693588755076,0.0039,25657.0,25654.0,0.021]
[1693588755286,0.0039,25657.0,25655.0,1.20915992]
[1693588755474,0.0039,25657.0,25656.0,1.12351942]
[1693588755672,0.0039,25657.0,25654.0,1.12351942]
[1693588755886,0.0039,25657.0,25655.0,1.12351942]
[1693588756095,0.0489,25658.0,25656.0,1.12351942]
[1693588756293,0.0489,25658.0,25657.0,0.0856405]
[1693588756585,0.0229,25658.0,25657.0,1.20915992]
[1693588756776,0.0039,25658.0,25657.0,1.20915992]
[1693588756981,0.41699677,25658.0,25657.0,1.12351942]
[1693588757180,0.3039,25658.0,25657.0,1.12351942]
[1693588757381,0.019,25658.0,25657.0,1.12551942]
[1693588757588,0.019,25658.0,25657.0,1.21115992]
[1693588758082,0.045,25658.0,25657.0,1.21115992]
[1693588758775,0.0489,25658.0,25657.0,1.21315992]
[1693588760086,0.045,25658.0,25657.0,1.25315992]
[1693588760289,0.045,25658.0,25657.0,2.28235992]
[1693588761084,0.03,25658.0,25657.0,2.31335992]
[1693588761987,0.005,25658.0,25657.0,2.32435992]
[1693588762775,0.007,25658.0,25657.0,2.32835992]
[1693588762977,0.003,25658.0,25657.0,2.34835992]
[1693588763188,0.007,25658.0,25657.0,2.34835992]
[1693588763582,0.007,25658.0,25657.0,2.32835992]
[1693588764385,0.0109,25658.0,25657.0,2.32835992]
[1693588765589,0.007,25658.0,25657.0,2.32835992]
[1693588765792,0.007,25658.0,25657.0,2.91158485]
[1693588765983,0.007,25658.0,25657.0,2.93158485]
[1693588766284,0.3039,25667.0,25657.0,3.30088485]
[1693588766480,0.3039,25667.0,25666.0,1.0292]
[1693588766685,0.3039,25667.0,25666.0,1.1148405]
[1693588767080,0.0039,25667.0,25666.0,2.23835992]
[1693588767890,0.0409,25667.0,25666.0,2.24135992]
[1693588768086,0.0409,25667.0,25666.0,2.26135992]
[1693588768284,0.0519,25667.0,25666.0,2.26435992]
[1693588768680,0.0519,25667.0,25666.0,1.1208405]
[1693588769097,0.0519,25667.0,25666.0,1.1408405]
[1693588769789,0.0519,25667.0,25666.0,1.1208405]
[1693588770395,0.0519,25667.0,25666.0,1.1408405]
[1693588770795,0.0519,25667.0,25666.0,1.1208405]
[1693588771092,0.0519,25667.0,25666.0,1.1408405]
[1693588771892,0.0409,25667.0,25666.0,1.1378405]
[1693588772095,0.0479,25667.0,25666.0,1.1378405]
[1693588772488,0.0479,25667.0,25666.0,1.0322]
[1693588772897,0.0139,25667.0,25666.0,1.0862]
[1693588773095,0.0139,25667.0,25666.0,1.1518405]
[1693588773990,0.004,25667.0,25666.0,1.1888405]
[1693588774499,0.0079,25667.0,25666.0,1.1888405]
[1693588774694,0.0069,25667.0,25666.0,1.1518405]
[1693588774898,0.0069,25667.0,25666.0,1.1888405]
[1693588775094,0.0079,25667.0,25666.0,1.1888405]
[1693588775697,0.0079,25667.0,25666.0,1.1032]
[1693588776098,0.0079,25667.0,25666.0,1.0662]
[1693588776403,0.0079,25667.0,25666.0,1.1888405]
[1693588777704,0.0109,25667.0,25666.0,1.1148405]
[1693588777895,0.0139,25667.0,25666.0,1.1518405]
[1693588778903,0.01,25667.0,25666.0,1.1718405]
[1693588779397,0.008,25667.0,25666.0,1.1348405]
[1693588779591,0.002,25667.0,25666.0,1.1718405]
[1693588779795,0.001,25667.0,25666.0,1.1718405]
[1693588780000,0.004,25667.0,25666.0,1.2088405]
[1693588780294,0.0079,25667.0,25666.0,1.1718405]
[1693588780596,0.0079,25667.0,25666.0,1.2028405]
[1693588780993,0.0049,25667.0,25666.0,1.1658405]
[1693588781309,0.3079,25667.0,25666.0,1.2088405]
[1693588781499,0.41727814,25667.0,25666.0,1.1032]
[1693588781903,0.3079,25667.0,25666.0,1.1032]
[1693588782299,0.3079,25667.0,25666.0,0.698]
[1693588782602,0.3079,25667.0,25666.0,0.7836405]
[1693588784408,0.3079,25667.0,25666.0,0.698]
[1693588784707,0.3279,25667.0,25666.0,0.698]
[1693588784901,0.55037491,25667.0,25666.0,0.698]
[1693588785498,0.3079,25667.0,25666.0,0.698]
[1693588786205,0.53037491,25667.0,25666.0,0.698]
[1693588786396,0.42099677,25667.0,25666.0,0.698]
[1693588786798,0.3079,25667.0,25666.0,0.698]
[1693588787105,0.3079,25667.0,25666.0,0.7836405]
[1693588787402,0.3079,25667.0,25666.0,1.9268764]
[1693588787606,0.004,25667.0,25666.0,1.9468764]
[1693588789206,0.3,25670.0,25666.0,2.50769803]
[1693588789406,0.3,25670.0,25669.0,0.624]
[1693588789703,0.3,25670.0,25669.0,0.66]
[1693588789909,0.3,25670.0,25669.0,1.8488764]
[1693588790501,0.301,25670.0,25669.0,1.8488764]
[1693588790703,0.313,25670.0,25669.0,1.8498764]
[1693588792105,0.313,25670.0,25669.0,1.8338764]
[1693588792306,0.312,25670.0,25669.0,1.8498764]
[1693588792511,0.324,25670.0,25669.0,1.8508764]
[1693588792704,0.324,25670.0,25669.0,1.8348764]
[1693588792911,0.324,25670.0,25669.0,1.8508764]
[1693588793111,0.324,25670.0,25669.0,1.8348764]
[1693588794115,0.324,25670.0,25669.0,1.8508764]
[1693588794414,0.3279,25670.0,25669.0,1.8508764]
[1693588794714,0.46099677,25670.0,25669.0,0.626]
[1693588795104,0.57037491,25670.0,25669.0,0.626]
[1693588795300,0.3479,25670.0,25669.0,1.83476256]
[1693588796704,0.3479,25670.0,25669.0,1.90076256]
[1693588796705,0.3279,25670.0,25669.0,1.90076256]
[1693588797305,0.324,25670.0,25669.0,1.90076256]
[1693588797704,0.3279,25670.0,25669.0,1.90076256]
[1693588797906,0.3279,25670.0,25669.0,1.81512206]
[1693588798116,0.3279,25670.0,25669.0,0.692]
[1693588798306,0.55037491,25670.0,25669.0,0.692]
[1693588798507,0.55037491,25670.0,25669.0,0.068]
[1693588798903,0.55037491,25670.0,25669.0,0.074]
[1693588799814,0.0039,25668.0,25667.0,0.624]
[1693588800015,0.22637491,25668.0,25667.0,0.624]
[1693588800215,0.24637491,25668.0,25667.0,0.624]
[1693588800813,0.24637491,25668.0,25663.0,0.1627]
[1693588800814,0.0039,25664.0,25663.0,0.1627]
[1693588801116,0.3039,25662.0,25661.0,0.1598]
[1693588801324,0.3039,25662.0,25661.0,0.7838]
[1693588801507,0.54637491,25662.0,25661.0,0.624]
[1693588802610,0.54937491,25662.0,25661.0,0.661]
[1693588803111,0.55737491,25662.0,25661.0,0.626]
[1693588803311,0.58337491,25662.0,25661.0,0.628]
[1693588805020,0.3039,25659.0,25658.0,0.12443738]
[1693588805333,0.3039,25659.0,25649.0,0.97988]
[1693588805334,1.5039,25656.0,25655.0,0.07723738]
[1693588805519,1.5039,25656.0,25653.0,0.11585607]
[1693588805520,0.0039,25654.0,25653.0,0.07723738]
[1693588805819,0.3039,25652.0,25651.0,0.11585607]
[1693588806119,0.3239,25652.0,25651.0,0.11585607]
[1693588806313,0.0039,25651.0,25650.0,0.73985607]
[1693588806510,0.0039,25651.0,25650.0,0.74060912]
[1693588806511,0.0239,25651.0,25650.0,0.74060912]
[1693588807221,0.3059,25652.0,25651.0,0.624]
[1693588807406,0.002,25652.0,25651.0,1.36454371]
[1693588807612,0.0039,25657.0,25651.0,1.52606338]
[1693588807810,0.3,25658.0,25656.0,0.624]
[1693588808108,0.3,25658.0,25657.0,0.624]
[1693588808416,0.3,25658.0,25657.0,0.7456405]
[1693588809214,0.33581668,25661.0,25659.0,0.624]
[1693588809413,0.3039,25661.0,25660.0,0.7096405]
[1693588809815,0.3039,25661.0,25660.0,0.624]
[1693588810517,0.3039,25661.0,25660.0,0.64]
[1693588810814,0.0039,25660.0,25659.0,0.624]
[1693588811021,0.11327814,25660.0,25659.0,0.624]
[1693588811220,0.24637491,25660.0,25659.0,0.624]
[1693588812120,0.24737491,25660.0,25659.0,0.64]
[1693588812323,0.24737491,25660.0,25659.0,0.016]
[1693588812525,0.0059,25660.0,25659.0,1.0578]
[1693588812721,0.002,25660.0,25659.0,1.0938]
[1693588813028,0.002,25660.0,25659.0,1.1634405]
[1693588813029,0.001,25660.0,25659.0,1.1634405]
[1693588813222,0.025,25660.0,25659.0,1.1534405]
[1693588813631,0.025,25660.0,25659.0,1.13534162]
[1693588814628,0.024,25660.0,25659.0,1.13534162]
[1693588814824,0.026,25660.0,25659.0,1.16034162]
[1693588815027,0.026,25660.0,25659.0,1.17434162]
[1693588815028,0.003,25660.0,25659.0,1.17434162]
[1693588815425,0.003,25660.0,25659.0,1.14934162]
[1693588815624,0.006,25660.0,25659.0,1.20734162]
[1693588816021,0.08838919,25668.0,25659.0,1.20734162]
[1693588816022,0.0039,25666.0,25659.0,1.20734162]
[1693588816230,0.003,25660.0,25659.0,0.65639347]
[1693588816431,0.3039,25667.0,25659.0,1.70719347]
[1693588816728,0.3039,25667.0,25666.0,2.0596]
[1693588816923,0.3039,25667.0,25666.0,2.1652405]
[1693588817123,0.3039,25667.0,25666.0,2.1812405]
[1693588818417,0.3039,25667.0,25666.0,2.0756]
[1693588818722,0.3069,25667.0,25666.0,2.1126]
[1693588818922,0.3079,25667.0,25666.0,2.2152405]
[1693588819124,0.3079,25667.0,25666.0,2.1992405]
[1693588819322,0.3079,25667.0,25666.0,2.2152405]
[1693588819522,0.42299677,25667.0,25666.0,2.1496]
[1693588819726,0.3099,25667.0,25666.0,2.1496]
[1693588819927,0.33746949,25667.0,25666.0,2.0966]
[1693588820125,0.34046949,25667.0,25666.0,2.2192405]
[1693588820329,0.33656949,25667.0,25666.0,2.2192405]
[1693588821435,0.33656949,25667.0,25666.0,2.2352405]
[1693588821923,0.03356949,25667.0,25666.0,2.1982405]
[1693588822128,0.33656949,25667.0,25666.0,2.2352405]